Cogmind - Beta 16.1 @@@ ROGUE MODE // 2026.05.02 @ 15:46:56 Player: Cinder Result: Destroyed by H-77 Assassin with Coil Gun Performance ------------- Evolutions (7) 3500 Regions Visited (12) 2400 Robots Destroyed (18) 90 Value Destroyed (524) 524 Prototype IDs (24) 480 Alien Tech Used (0) 0 Bonus (300) 300 TOTAL SCORE: 7294 Bonus ------- Aligned with FarCom 300 Cogmind --------- Core Integrity 0/1300 Matter 209/300 Energy 100/100 System Corruption 9% Temperature Cool (1) Movement Flying (45) Location -3/Research Parts ------- > --- POWER (2) -------- (None) > --- PROPULSION (9) --- Antigrav Array Impulse Thruster Array > --- UTILITY (8) ------ (None) > --- WEAPON (2) ------- (None) > --- INVENTORY (5) ---- Improved VSS Leg Biometal Leg Coil Gun Rocket Launcher Peak State ------------ > --- POWER ------------ Improved Ion Engine Backup Power VII > --- PROPULSION ------- Improved Linear Gravjet Xenon Bombardment Thruster Nuclear Pulse Array > --- UTILITY ---------- Small Storage Unit Advanced Sensor Array Experimental Signal Interpreter Transmission Jammer Advanced Reaction Control System Hacking Suite Hacking Suite System Shield > --- WEAPON ----------- (None) > --- INVENTORY -------- Improved Titanium Leg Improved VSS Leg Biometal Leg Armored Wheel Medium Storage Unit Improved Force Field Coil Gun Rocket Launcher [Rating: 69] Favorites ----------- Power Ion Engine Engine Ion Engine Power Core Micro Nuclear Core Propulsion Aluminum Leg Treads Light Treads Leg Aluminum Leg Wheel Compact Wheel Hover Unit Gravmag System Flight Unit Xenon Bombardment Thruster Utility Small Storage Unit Device Seismic Detector Storage Small Storage Unit Processor Experimental Signal Interpreter Hackware Hacking Suite Protection Insulated Plating Weapon Medium Laser Energy Gun Medium Laser Ballistic Gun Assault Rifle Launcher Shock Bomb Launcher Build | -11 -10 -10 -10 -9 -8 -7 -6 -5 -5 -5 -4 -3 ------- Run | Yrd Mat Min Exi Min Mat Fac Fac Fac Upp Upp Fac Res Slots Evolved 14 | . . . . . 4 2 2 2 . . 2 2 Power 1 | . . . . . . . 1 . . . . . Propulsion 7 | . . . . . 2 1 1 1 . . 1 1 Utility 6 | . . . . . 2 1 . 1 . . 1 1 Weapon . | . . . . . . . . . . . . . Parts Attached 52 | 7 1 . . 1 15 11 . 3 2 . 5 7 Power 6 | 1 . . . . 3 2 . . . . . . Engine 5 | 1 . . . . 3 1 . . . . . . Core 1 | . . . . . . 1 . . . . . . Reactor . | . . . . . . . . . . . . . Propulsion 21 | 3 . . . 1 5 5 . . 1 . 1 5 Treads 2 | . . . . . 2 . . . . . . . Leg 6 | 2 . . . 1 3 . . . . . . . Wheel 2 | 1 . . . . . . . . . . . 1 Hover 4 | . . . . . . 1 . . . . 1 2 Flight 7 | . . . . . . 4 . . 1 . . 2 Utility 19 | 1 1 . . . 4 4 . 2 1 . 4 2 Device 9 | . 1 . . . 1 2 . 1 1 . 1 2 Storage 4 | 1 . . . . 2 1 . . . . . . Processor 1 | . . . . . . . . . . . 1 . Hackware 4 | . . . . . . 1 . 1 . . 2 . Protection 1 | . . . . . 1 . . . . . . . Artifact . | . . . . . . . . . . . . . Weapon 6 | 2 . . . . 3 . . 1 . . . . Energy Gun 1 | 1 . . . . . . . . . . . . Energy Cannon . | . . . . . . . . . . . . . Ballistic Gun 3 | 1 . . . . 1 . . 1 . . . . Ballistic Cannon . | . . . . . . . . . . . . . Launcher 2 | . . . . . 2 . . . . . . . Special Weapon . | . . . . . . . . . . . . . Impact Weapon . | . . . . . . . . . . . . . Slashing Weapon . | . . . . . . . . . . . . . Piercing Weapon . | . . . . . . . . . . . . . Special Melee Weapon . | . . . . . . . . . . . . . Unidentified Prototypes 1 | . . . . . . . . . . . 1 . Parts Lost 38 | . . . . . 15 . . . 9 . . 14 Power 6 | . . . . . 3 . . . 1 . . 2 Propulsion 15 | . . . . . 5 . . . 5 . . 5 Utility 12 | . . . . . 3 . . . 2 . . 7 Weapon 5 | . . . . . 4 . . . 1 . . . Highest Loss Streak 11 | . . . . . 8 . . . 8 . . 11 To Critical Strikes 1 | . . . . . 1 . . . . . . . Average Backups 7 | 3 7 8 7 8 7 7 8 8 8 8 8 6 Power . | . 1 1 1 1 . . 1 1 1 1 1 . Propulsion 3 | 2 4 5 4 4 4 2 3 3 3 3 3 3 Utility 1 | . . . . 1 1 2 2 2 2 2 2 1 Weapon 1 | . 1 2 2 2 1 1 2 2 2 2 2 2 Tool/Special . | . . . . . . . . . . . . . Unused Backups 11 | . . 1 1 . 1 1 . . . . . 7 Power . | . . . . . . . . . . . . . Propulsion 8 | . . 1 1 . 1 1 . . . . . 4 Utility 1 | . . . . . . . . . . . . 1 Weapon 2 | . . . . . . . . . . . . 2 Tool/Special . | . . . . . . . . . . . . . Average Slot Usage (%) 78 | . 90 100 100 100 81 62 84 76 70 29 40 33 Engine 8 | . 14 14 14 14 8 5 4 5 1 . . 2 Treads 2 | . . . . . 8 . . . . . . . Leg 15 | . 28 28 28 28 22 . . . . . . . Flight 6 | . . . . . . 20 26 23 21 5 5 4 Device 12 | . 5 14 14 14 17 5 13 13 15 11 10 4 Storage 9 | . 14 14 14 14 9 7 6 5 5 5 5 2 Hackware 3 | . . . . . . 6 6 5 10 5 12 9 Energy Gun 8 | . 14 14 14 14 5 13 13 4 . . . . Ballistic Gun 7 | . 14 14 14 14 7 . . 2 4 . . . Peak Build Rating 69 | 6 7 7 8 8 30 33 36 47 48 15 40 69 Average Rating 18 | 4 6 7 7 8 20 16 35 40 40 15 32 39 On Entrance 17 | . 6 7 7 8 8 3 33 36 47 15 15 40 Avg Prop Armor Cover (%) 10 | . . . . . 12 7 10 6 8 . 14 13 Naked Turns . | . . . . . . . . . . . . . Heaviest Build 35 | 14 15 15 15 15 35 16 17 20 20 7 7 20 Greatest Support 37 | 20 20 20 20 20 37 16 19 24 24 7 7 36 Greatest Overweight (x) 1 | 1 . . . . 1 . . . . . . . Average Overweight (x) . | . . . . . . . . . . . . . Largest Inventory Capacity 15 | 8 8 8 8 8 15 10 8 8 8 8 8 10 Average Capacity 8 | 7 8 8 8 8 8 8 8 8 8 8 8 6 Most Carried 9 | 6 8 8 8 8 9 8 8 8 8 8 8 8 Average Carried 7 | 3 7 7 7 7 7 7 8 7 8 8 7 6 Final Capacity 10 | 8 8 8 8 8 10 8 8 8 8 8 8 5 Final Carried 8 | 6 8 8 8 8 8 8 8 8 8 8 8 4 Class Distribution -------------------- 78% | Mutant 9% | Sprinter 5% | Hacker-Mutant 3% | Hacker-Sprinter Dominant Class ---------------- Mutant | -10/Materials Mutant | -10/Mines Mutant | -10/Exiles Mutant | -9/Mines Mutant | -8/Materials Mutant | -7/Factory Sprinter | -6/Factory Scout | -5/Factory Hacker-Sprinter | -5/Upper Caves Mutant | -5/Upper Caves Hacker-Mutant | -4/Factory Mutant | -3/Research Resources | -11 -10 -10 -10 -9 -8 -7 -6 -5 -5 -5 -4 -3 ----------- Run | Yrd Mat Min Exi Min Mat Fac Fac Fac Upp Upp Fac Res Matter Collected 709 | 213 . 115 . 19 187 60 . . 110 . . 5 Remotely . | . . . . . . . . . . . . . Salvage Created 591 | . . 139 . 36 416 . . . . . . . Parts 36 | . . 6 . 4 26 . . . . . . . Haulers Intercepted . | . . . . . . . . . . . . . Recyclers Shooed . | . . . . . . . . . . . . . Parts Field Recycled . | . . . . . . . . . . . . . Retrieved Matter . | . . . . . . . . . . . . . Parts Self-Destructed 6 | . . . . . . . . . 6 . . . Prevented 2 | . . . . . . . . . 2 . . . Parts Restored . | . . . . . . . . . . . . . Kills | -11 -10 -10 -10 -9 -8 -7 -6 -5 -5 -5 -4 -3 ------- Run | Yrd Mat Min Exi Min Mat Fac Fac Fac Upp Upp Fac Res Combat Hostiles Destroyed 14 | . . 3 . 2 9 . . . . . . . Guns 7 | . . 3 . 2 2 . . . . . . . AOE 7 | . . . . . 7 . . . . . . . Classes Destroyed 6 | . . 3 . . 3 . . . . . . . Worker 1 | . . . . . 1 . . . . . . . Tunneler 1 | . . 1 . . . . . . . . . . Recycler 2 | . . . . . 2 . . . . . . . Swarmer 7 | . . 1 . 2 4 . . . . . . . Grunt 6 | . . 2 . . 4 . . . . . . . Hunter 1 | . . . . . 1 . . . . . . . Best Kill Streak 5 | . . 4 . 2 5 . . . . . . . Combat Bots Only 4 | . . 3 . 2 4 . . . . . . . Max Kills in Single Turn 3 | . . 1 . 1 3 . . . . . . . Gunslinging . | . . . . . . . . . . . . . Exploded 2 | . . . . . 2 . . . . . . . Melee . | . . . . . . . . . . . . . Uniques/NPCs Destroyed . | . . . . . . . . . . . . . Combat | -11 -10 -10 -10 -9 -8 -7 -6 -5 -5 -5 -4 -3 -------- Run | Yrd Mat Min Exi Min Mat Fac Fac Fac Upp Upp Fac Res Hostile Shots Fired 620 | . . 31 . 15 280 2 . . 114 . 2 176 Missed 259 | . . 5 . 7 111 1 . . 66 . 1 68 Hits 361 | . . 26 . 8 169 1 . . 48 . 1 108 Melee 1 | . . . . . . . . . 1 . . . Projectile 360 | . . 26 . 8 169 1 . . 47 . 1 108 Critical Strikes 11 | . . 1 . . 4 . . . 2 . . 4 Damage Taken 5569 | . . 291 . 61 1928 18 . . 821 . 22 2428 Core 2147 | . . 85 . 6 409 18 . . 301 . 22 1306 Absorbed by Shields . | . . . . . . . . . . . . . Ignored by Resistances 8 | . . . . . 8 . . . . . . . Core Remaining (%) 78 | 100 . . . 63 25 97 100 . . 69 98 . Volleys Fired 36 | . . 16 . 3 17 . . . . . . . Largest 2 | . . 2 . 2 2 . . . . . . . Hottest 70 | . . 70 . 70 70 . . . . . . . Shots Fired 69 | . . 32 . 6 31 . . . . . . . Gun 61 | . . 32 . 6 23 . . . . . . . Cannon . | . . . . . . . . . . . . . Launcher 8 | . . . . . 8 . . . . . . . Special . | . . . . . . . . . . . . . Kinetic 33 | . . 16 . 3 14 . . . . . . . Thermal 28 | . . 16 . 3 9 . . . . . . . Explosive 3 | . . . . . 3 . . . . . . . Electromagnetic 5 | . . . . . 5 . . . . . . . Robot Hit Streak 18 | . . 7 . 5 18 . . . . . . . Robot Miss Streak 4 | . . 3 . 1 4 . . . . . . . Penetration Max . | . . . . . . . . . . . . . Secondary Targets . | . . . . . . . . . . . . . Shots Hit Robots 51 | . . 23 . 5 23 . . . . . . . Core Hits 31 | . . 7 . 2 22 . . . . . . . Critical Kills . | . . . . . . . . . . . . . Critical Parts Destroyed 1 | . . 1 . . . . . . . . . . Critical Strikes 1 | . . 1 . . . . . . . . . . Destroy 1 | . . 1 . . . . . . . . . . Melee Attacks . | . . . . . . . . . . . . . Impact . | . . . . . . . . . . . . . Slashing . | . . . . . . . . . . . . . Piercing . | . . . . . . . . . . . . . Sneak Attacks . | . . . . . . . . . . . . . Combat Hostiles . | . . . . . . . . . . . . . Follow-up Attacks . | . . . . . . . . . . . . . Damage Inflicted 1227 | . . 295 . 55 877 . . . . . . . Guns 551 | . . 295 . 55 201 . . . . . . . Cannons . | . . . . . . . . . . . . . Explosions 676 | . . . . . 676 . . . . . . . Melee . | . . . . . . . . . . . . . Ramming . | . . . . . . . . . . . . . Kinetic 286 | . . 168 . 31 87 . . . . . . . Thermal 265 | . . 127 . 24 114 . . . . . . . Explosive 414 | . . . . . 414 . . . . . . . Electromagnetic 262 | . . . . . 262 . . . . . . . Impact . | . . . . . . . . . . . . . Slashing . | . . . . . . . . . . . . . Piercing . | . . . . . . . . . . . . . Highest Corruption 9 | . . . . . . . . . 3 3 . 9 Average Corruption 5 | . . . . . . . . . 3 3 . 6 Corruption Purged . | . . . . . . . . . . . . . Corruption Blocked . | . . . . . . . . . . . . . Effects 6 | . . . . . . . . . 1 . . 5 Message Errors 1 | . . . . . . . . . . . . 1 Matter Fused 2 | . . . . . . . . . . . . 2 Heat Flow Errors 1 | . . . . . . . . . 1 . . . Energy Discharges 1 | . . . . . . . . . . . . 1 Data Loss (major) 1 | . . . . . . . . . . . . 1 Overload Shots . | . . . . . . . . . . . . . Overflow Damage 56 | . . . . . 56 . . . . . . . Projectiles . | . . . . . . . . . . . . . Explosions 56 | . . . . . 56 . . . . . . . Melee . | . . . . . . . . . . . . . Knockbacks . | . . . . . . . . . . . . . Impact . | . . . . . . . . . . . . . Kinetic . | . . . . . . . . . . . . . Secondary . | . . . . . . . . . . . . . Self-Inflicted Damage 170 | . . . . . 170 . . . . . . . Shots 6 | . . . . . 6 . . . . . . . Rammed . | . . . . . . . . . . . . . Targets Rammed . | . . . . . . . . . . . . . Kicked . | . . . . . . . . . . . . . Crushed . | . . . . . . . . . . . . . Highest Temperature 261 | . . 261 . 27 60 . . . 91 . . . Average Temperature 76 | . . 126 . 14 17 . . . 46 . . . Received Heat Transfer 918 | . . 138 . . 360 9 . . 132 . . 279 Siege Activations . | . . . . . . . . . . . . . Martial Activations . | . . . . . . . . . . . . . Shielding Activations . | . . . . . . . . . . . . . Robots Disrupted . | . . . . . . . . . . . . . Combat Hostiles . | . . . . . . . . . . . . . Robots Corrupted . | . . . . . . . . . . . . . Combat Hostiles . | . . . . . . . . . . . . . Parts Fried . | . . . . . . . . . . . . . Impact Corruptions . | . . . . . . . . . . . . . Robots Melted . | . . . . . . . . . . . . . Combat Hostiles . | . . . . . . . . . . . . . Parts Melted 3 | . . 3 . . . . . . . . . . Heat Transferred 777 | . . 370 . 74 333 . . . . . . . Parts Sabotaged . | . . . . . . . . . . . . . Parts Stolen . | . . . . . . . . . . . . . Parts Stripped . | . . . . . . . . . . . . . Power Chain Reactions . | . . . . . . . . . . . . . Alert | -11 -10 -10 -10 -9 -8 -7 -6 -5 -5 -5 -4 -3 ------- Run | Yrd Mat Min Exi Min Mat Fac Fac Fac Upp Upp Fac Res Maximum Alert Level 1 | . . . . . 1 . . . . . . . Low Security (%) 96 | 100 100 100 . 100 89 100 100 100 . . 100 100 Level 1 3 | . . . . . 10 . . . . . . . Level 2 . | . . . . . . . . . . . . . Level 3 . | . . . . . . . . . . . . . Level 4 . | . . . . . . . . . . . . . Level 5 . | . . . . . . . . . . . . . High Security . | . . . . . . . . . . . . . Max Security . | . . . . . . . . . . . . . Peak Influence 317 | . 5 80 . 50 317 115 2 . . . 67 139 Initial 115 | . . . . . . 115 2 . . . 67 3 Average 31 | . . 28 . 9 48 23 . . . . 38 41 Influence Increases 1344 | . 5 115 . 50 535 84 . . 315 . . 240 Destroy 0b10 Robot/C 280 | . . 60 . 40 180 . . . . . . . Destroy 0b10 Robot/NC 20 | . . 5 . . 15 . . . . . . . Destroy Leader 50 | . . 20 . 10 20 . . . . . . . Successful Hack 94 | . 5 . . . 20 24 . . . . . 45 Disable Machine 15 | . . . . . 15 . . . . . . . Anti-Garrison Action 150 | . . . . . 150 . . . . . . . Destroy Structure 30 | . . . . . 30 . . . . . . . Partial Spotted 45 | . . . . . . 45 . . . . . . Lose Combat Pursuer 660 | . . 30 . . 105 15 . . 315 . . 195 Influence Decreases 1220 | . 5 45 70 50 281 331 7 . 180 27 101 123 Entered New Map 286 | . . . 70 . . 139 5 . . 27 41 4 Time Decay 669 | . 5 45 . 50 151 192 2 . 90 . 60 74 Lost Part 265 | . . . . . 130 . . . 90 . . 45 Squads Dispatched 6 | . . . . . 2 2 . . . . 1 1 Investigation 1 | . . . . . . . . . . . 1 . Extermination 2 | . . . . . . 2 . . . . . . Reinforcement 1 | . . . . . . . . . . . . 1 Assault 2 | . . . . . 2 . . . . . . . Garrison . | . . . . . . . . . . . . . Intercept . | . . . . . . . . . . . . . Searches Triggered . | . . . . . . . . . . . . . Construction Impeded . | . . . . . . . . . . . . . Haulers Reinforced . | . . . . . . . . . . . . . Active Scanning Responses . | . . . . . . . . . . . . . Cargo Convoy Interrupts . | . . . . . . . . . . . . . Stealth | -11 -10 -10 -10 -9 -8 -7 -6 -5 -5 -5 -4 -3 --------- Run | Yrd Mat Min Exi Min Mat Fac Fac Fac Upp Upp Fac Res Distress Signals 7 | . . . . . 3 1 . . . . 1 2 Communications Jammed . | . . . . . . . . . . . . . Distress Signals . | . . . . . . . . . . . . . Times Spotted 116 | . . 5 . 3 35 6 . . 41 . 3 23 Peak Tracking Total 20 | . . 3 . 3 11 3 . . 20 . 2 10 Tactical Retreats 19 | . . 2 . . 5 1 . . 6 . . 5 Traps | -11 -10 -10 -10 -9 -8 -7 -6 -5 -5 -5 -4 -3 ------- Run | Yrd Mat Min Exi Min Mat Fac Fac Fac Upp Upp Fac Res Traps Triggered 2 | . . . . . . . . . . . . 2 Indirectly . | . . . . . . . . . . . . . Trap Hack Attempts . | . . . . . . . . . . . . . Triggered . | . . . . . . . . . . . . . Disarmed . | . . . . . . . . . . . . . Reprogrammed . | . . . . . . . . . . . . . Reused . | . . . . . . . . . . . . . Traps Reconfigurated 5 | . . . . . 5 . . . . . . . Traps Extracted . | . . . . . . . . . . . . . Installed . | . . . . . . . . . . . . . Triggered . | . . . . . . . . . . . . . Machines | -11 -10 -10 -10 -9 -8 -7 -6 -5 -5 -5 -4 -3 ---------- Run | Yrd Mat Min Exi Min Mat Fac Fac Fac Upp Upp Fac Res Machines Disabled 2 | . . . . . 2 . . . . . . . Max in Single Turn 1 | . . . . . 1 . . . . . . . Garrison Access 1 | . . . . . 1 . . . . . . . Machines Repaired . | . . . . . . . . . . . . . Machines Dismantled . | . . . . . . . . . . . . . Machines Sabotaged . | . . . . . . . . . . . . . Overloaded Fab Kills . | . . . . . . . . . . . . . Hacking | -11 -10 -10 -10 -9 -8 -7 -6 -5 -5 -5 -4 -3 --------- Run | Yrd Mat Min Exi Min Mat Fac Fac Fac Upp Upp Fac Res Machines Accessed 30 | . 2 . 4 . 5 8 4 2 . . 1 4 Terminals 13 | . 1 . . . 3 4 1 1 . . 1 2 Fabricators 1 | . . . . . . 1 . . . . . . Repair Stations 3 | . . . . . . 1 1 . . . . 1 Recycling Units 4 | . 1 . . . 1 1 . . . . . 1 Scanalyzers 4 | . . . . . 1 1 1 1 . . . . Garrison Access 1 | . . . . . . . 1 . . . . . Total Hacks 54 | . 3 . 9 . 11 11 6 5 . . 4 5 Successful 36 | . 2 . 9 . 6 7 4 4 . . 1 3 Failed 17 | . 1 . . . 5 3 2 1 . . 3 2 Catastrophic 5 | . . . . . 1 2 1 . . . 1 . Database Lockouts 1 | . . . . . . 1 . . . . . . Manual 1 | . . . 1 . . . . . . . . . Terminals 23 | . 2 . . . 8 5 1 1 . . 4 2 Fabricators 1 | . . . . . . 1 . . . . . . Repair Stations 3 | . . . . . . 1 1 . . . . 1 Recycling Units 7 | . 1 . . . 2 2 . . . . . 2 Scanalyzers 10 | . . . . . 1 2 3 4 . . . . Garrison Access 1 | . . . . . . . 1 . . . . . Terminal Hacks 22 | . 2 . 9 . 4 2 1 1 . . 1 2 Record 8 | . . . 8 . . . . . . . . . Robot Analysis 1 | . 1 . . . . . . . . . . . Open DSF 1 | . . . . . . . . . . . . 1 Level Access Points 1 | . . . . . . . . . . . . 1 Emergency Access Points 2 | . . . . . 1 1 . . . . . . Alert Level 1 | . . . . . 1 . . . . . . . Locate Traps 3 | . . . . . 1 . 1 1 . . . . Patrol Status 1 | . . . . . . 1 . . . . . . Investigation Status 1 | . . . . . . . . . . . 1 . Hauler Manifests 1 | . 1 . . . . . . . . . . . Zone Layout 1 | . . . . . 1 . . . . . . . Proto ID Catalog 1 | . . . 1 . . . . . . . . . Fabricator Hacks 1 | . . . . . . 1 . . . . . . Network Status 1 | . . . . . . 1 . . . . . . Repair Station Hacks 3 | . . . . . . 1 1 . . . . 1 Refit 3 | . . . . . . 1 1 . . . . 1 Recycling Unit Hacks 3 | . . . . . 1 2 . . . . . . Process 1 | . . . . . . 1 . . . . . . Retrieve Components 2 | . . . . . 1 1 . . . . . . Scanalyzer 7 | . . . . . 1 1 2 3 . . . . Insert Component 2 | . . . . . . . 1 1 . . . . Analyze 2 | . . . . . . . 1 1 . . . . Retrieve Study 3 | . . . . . 1 1 . 1 . . . . Garrison Access Hacks . | . . . . . . . . . . . . . Unauthorized Hacks . | . . . . . . . . . . . . . Terminals . | . . . . . . . . . . . . . Fabricators . | . . . . . . . . . . . . . Repair Stations . | . . . . . . . . . . . . . Recycling Units . | . . . . . . . . . . . . . Scanalyzers . | . . . . . . . . . . . . . Garrison Access . | . . . . . . . . . . . . . Data Cores Recovered . | . . . . . . . . . . . . . Used . | . . . . . . . . . . . . . Hacking Detections 17 | . 1 . . . 4 4 3 2 . . 1 2 Full Trace Events 1 | . . . . . . . . . . . 1 . Feedback Events . | . . . . . . . . . . . . . Feedback Blocked . | . . . . . . . . . . . . . Robot Schematics Acquired . | . . . . . . . . . . . . . Robots Built . | . . . . . . . . . . . . . Authchips . | . . . . . . . . . . . . . Time . | . . . . . . . . . . . . . Total Robot Build Rating . | . . . . . . . . . . . . . Part Schematics Acquired 2 | . . . . . . . 1 1 . . . . Parts Built . | . . . . . . . . . . . . . Authchips . | . . . . . . . . . . . . . Time . | . . . . . . . . . . . . . Total Part Build Rating . | . . . . . . . . . . . . . Part Studies Acquired 3 | . . . . . 1 1 . 1 . . . . Parts Repaired . | . . . . . . . . . . . . . Time . | . . . . . . . . . . . . . Parts Recycled . | . . . . . . . . . . . . . Recycled Matter 19 | . . . . . . 19 . . . . . . Retrieved Matter . | . . . . . . . . . . . . . Retrieved Components . | . . . . . . . . . . . . . Parts Scanalyzed 2 | . . . . . . . 1 1 . . . . Part Schematics Acquired 2 | . . . . . . . 1 1 . . . . Parts Damaged . | . . . . . . . . . . . . . Bothacking | -11 -10 -10 -10 -9 -8 -7 -6 -5 -5 -5 -4 -3 ------------ Run | Yrd Mat Min Exi Min Mat Fac Fac Fac Upp Upp Fac Res Used RIF Installer . | . . . . . . . . . . . . . Robots Hacked . | . . . . . . . . . . . . . Non-combat . | . . . . . . . . . . . . . Combat . | . . . . . . . . . . . . . Robot Hacks Applied . | . . . . . . . . . . . . . Relay Couplers Released 3 | . . . . . 3 . . . . . . . Machine Destruction 3 | . . . . . 3 . . . . . . . Fabnet Peak Effective % . | . . . . . . . . . . . . . Robots Rewired . | . . . . . . . . . . . . . Allies Hacked . | . . . . . . . . . . . . . Hacks Repelled . | . . . . . . . . . . . . . Allies | -11 -10 -10 -10 -9 -8 -7 -6 -5 -5 -5 -4 -3 -------- Run | Yrd Mat Min Exi Min Mat Fac Fac Fac Upp Upp Fac Res Total Allies . | . . . . . . . . . . . . . Largest Group . | . . . . . . . . . . . . . Highest-Rated Group . | . . . . . . . . . . . . . Highest-Rated Ally . | . . . . . . . . . . . . . Total Orders . | . . . . . . . . . . . . . Ally Attacks . | . . . . . . . . . . . . . Total Damage . | . . . . . . . . . . . . . Kills . | . . . . . . . . . . . . . Allies Corrupted . | . . . . . . . . . . . . . Allies Melted . | . . . . . . . . . . . . . Intel | -11 -10 -10 -10 -9 -8 -7 -6 -5 -5 -5 -4 -3 ------- Run | Yrd Mat Min Exi Min Mat Fac Fac Fac Upp Upp Fac Res Active Infowar (turns) 3128 | . 45 153 652 254 958 528 54 63 185 12 133 91 Sensors 287 | . . . . . . . . 39 147 . 29 72 Seismic 3010 | . 45 153 652 254 958 528 54 63 185 12 106 . Jamming 297 | . . . . . . 46 54 63 95 . . 39 Robot Analysis Total 1 | . 1 . . . . . . . . . . . Derelict Logs Recovered 2 | . . . . 1 . . . . 1 . . . Drone Launches . | . . . . . . . . . . . . . Drone Recoveries . | . . . . . . . . . . . . . Exploration | -11 -10 -10 -10 -9 -8 -7 -6 -5 -5 -5 -4 -3 ------------- Run | Yrd Mat Min Exi Min Mat Fac Fac Fac Upp Upp Fac Res Turns Passed 3668 | 64 129 153 652 254 1012 717 54 63 185 12 133 240 Spaces Moved 4119 | 43 105 87 543 202 451 1014 168 187 548 29 250 492 Core 187 | 9 . . . . . . . . . . . 178 Treads 5 | . . . . . 5 . . . . . . . Legs 1387 | 33 105 87 543 202 417 . . . . . . . Wheels 38 | 1 . . . . 29 8 . . . . . . Hover 33 | . . . . . . . . . . . . 33 Flight 2469 | . . . . . . 1006 168 187 548 29 250 281 Fastest Speed 28 | 50 120 120 120 120 90 32 32 29 28 40 40 37 Average Speed 64 | 113 120 120 120 120 113 33 32 30 32 40 40 43 Slowest Speed 186 | 120 120 120 120 120 186 90 32 32 40 40 40 60 Overloaded Moves . | . . . . . . . . . . . . . Propulsion Burnouts . | . . . . . . . . . . . . . Robots Hopped 29 | . . . . . . 12 2 1 5 . 1 8 Potential Cave-ins . | . . . . . . . . . . . . . Cave-ins Triggered . | . . . . . . . . . . . . . Exploration Rate (%) 29 | 4 16 27 92 42 48 26 6 8 72 9 7 24 Regions Visited 12 Branch Regions 5 Pre-discovered Areas 1 | . . . . 1 . . . . . . . . Known Exits Taken 1 | . . . . . . . . . . . 1 . Unknown Exits Taken 11 | 1 1 1 1 1 1 1 1 1 1 1 . . Scrap Searched 3 | . . . . 1 . . . . 1 1 . . Spaces Dug . | . . . . . . . . . . . . . Terrain Destroyed 29 | . . . . . 29 . . . . . . . Melee . | . . . . . . . . . . . . . Projectile . | . . . . . . . . . . . . . AOE 29 | . . . . . 29 . . . . . . . Terrain Rammed . | . . . . . . . . . . . . . Walls Destroyed . | . . . . . . . . . . . . . Machines Disabled . | . . . . . . . . . . . . . Actions | -11 -10 -10 -10 -9 -8 -7 -6 -5 -5 -5 -4 -3 --------- Run | Yrd Mat Min Exi Min Mat Fac Fac Fac Upp Upp Fac Res Total 5038 | 55 107 104 544 207 921 1375 165 192 551 28 279 510 Wait 805 | . . . . . 423 348 . . 5 . 23 6 Move 4054 | 42 104 86 542 201 450 990 163 184 538 28 247 479 Hop 24 | . . . . . . 11 2 1 4 . 1 5 Pick Up 32 | 5 2 1 1 1 9 7 . 2 . . 1 3 Fast Attach 27 | 7 1 . . . 4 3 . 1 1 . 4 6 Attach 18 | . . . . . 6 7 . 2 . . 1 2 Detach 5 | 1 . . . . . 3 . . . . . 1 Swap 12 | . . . . 1 6 2 . . 1 . 1 1 Drop 25 | . . 1 1 1 6 4 . 2 2 . 1 7 Fire 36 | . . 16 . 3 17 . . . . . . . Melee . | . . . . . . . . . . . . . Ram . | . . . . . . . . . . . . . Kick . | . . . . . . . . . . . . . Crush . | . . . . . . . . . . . . . Escape Stasis . | . . . . . . . . . . . . . Rewire . | . . . . . . . . . . . . . Trap . | . . . . . . . . . . . . . Miscellaneous . | . . . . . . . . . . . . . Route ------- -11/Scrapyard -10/Materials -10/Mines -10/Exiles (discovered 2 exits: [*Min x2]) -9/Mines -8/Materials -7/Factory -6/Factory -5/Factory -5/Upper Caves -5/Upper Caves -4/Factory -3/Research (discovered 4 exits: Res x3 / *Arm) History --------- Turn | Location | Event 10 | -11/Scrapyard | Discovered new exit (range 15) 65 | -11/Scrapyard | Entered Materials 108 | -10/Materials | Discovered new exit (range 16) 194 | -10/Materials | Entered Mines 201 | -10/Mines | Met a Derelict bent on vengeance 303 | -10/Mines | Build established: Mutant 342 | -10/Mines | Deemed a non-threat by the Exiles lab entrance 342 | -10/Mines | Discovered new exit (range 5) 347 | -10/Mines | Entered Exiles 363 | -10/Exiles | Discovered new exit (range 15) 380 | -10/Exiles | Met 8R-AWN 403 | -10/Exiles | Met EX-HEX 465 | -10/Exiles | Met EX-DEC 492 | -10/Exiles | Visited The Gauntlet 687 | -10/Exiles | Discovered new exit (range 12) 800 | -10/Exiles | Met EX-BIN 817 | -10/Exiles | Aligned with FarCom system 818 | -10/Exiles | Given EX-Vault access code 875 | -10/Exiles | Opened EX-Vault 880 | -10/Exiles | Found Prototype Device 887 | -10/Exiles | Identified Trap Reconfigurator 912 | -10/Exiles | Warned to stay clear of 0b10 Research branches 999 | -10/Exiles | Left Exiles lab with Trap Reconfigurator 999 | -10/Exiles | Entered Mines 1044 | -9/Mines | Learned location of Storage (-8) 1227 | -9/Mines | Discovered new exit (range 5) 1253 | -9/Mines | Entered Materials 1253 | -8/Materials | Evolved 4 slots: Propulsion x2, Utility x2 2166 | -8/Materials | Lost 4 parts (1p1n1u1w) 2222 | -8/Materials | Core integrity fell below 50% 2251 | -8/Materials | Discovered new exit (range 16) 2265 | -8/Materials | Entered Factory 2265 | -7/Factory | Evolved 2 slots: Propulsion x1, Utility x1 2291 | -7/Factory | Lost 8 parts (1p4n2u1w) 2911 | -7/Factory | Central database locked down 2976 | -7/Factory | Discovered new exit (range 15) 2982 | -7/Factory | Entered another Factory area 2982 | -6/Factory | Evolved 2 slots: Power x1, Propulsion x1 3033 | -6/Factory | Discovered new exit (range 4) 3036 | -6/Factory | Build established: Sprinter 3036 | -6/Factory | Entered another Factory area 3036 | -5/Factory | Evolved 2 slots: Propulsion x1, Utility x1 3083 | -5/Factory | Discovered new exit (range 5) 3099 | -5/Factory | Entered Upper Caves 3116 | -5/Upper Caves | Spotted B-75 Beast 3144 | -5/Upper Caves | Attracted the attention of an 0b10 checkpoint 3189 | -5/Upper Caves | Encountered a Warlord checkpoint 3280 | -5/Upper Caves | Attracted the attention of an 0b10 outpost 3282 | -5/Upper Caves | Discovered new exit (range 6) 3284 | -5/Upper Caves | Entered another Upper Caves area 3293 | -5/Upper Caves | Discovered new exit (range 8) 3296 | -5/Upper Caves | Entered Factory 3296 | -4/Factory | Evolved 2 slots: Propulsion x1, Utility x1 3298 | -4/Factory | Lost 8 parts (5n2u1w) 3330 | -4/Factory | Found Prototype Processor 3330 | -4/Factory | Identified Exp. Signal Interpreter 3426 | -4/Factory | Discovered new exit (range 8) 3429 | -4/Factory | Identified exit to Research 3429 | -4/Factory | Entered Research 3429 | -3/Research | Evolved 2 slots: Propulsion x1, Utility x1 3430 | -3/Research | Identified exit to Armory 3543 | -3/Research | Spotted B-86 Titan 3595 | -3/Research | Core integrity fell below 50% 3597 | -3/Research | Lost 11 parts (2p4n5u) 3616 | -3/Research | Identified exit to Research 3630 | -3/Research | Spotted B-86 Titan 3648 | -3/Research | Spotted B-86 Titan 3650 | -3/Research | Core integrity fell below 20% 3669 | -3/Research | Destroyed by H-77 Assassin with Coil Gun Last Messages --------------- 03641_ Slug penetrates Wall. 03641_ Arm. Wheel destroyed. 03642_ K-01 Serf collects debris. 03647_ O-32 Director: "IFF HANDSHAKE FAILED. SECURING TERMINAL." 03649_ Exp. Signal Interpreter destroyed. 03649_ Critical hit (Blast). 03650_ K-01 Serf collects debris. 03650_ O-32 Director uses terminal to summon reinforcements. 03650_ ALERT: Hostiles spotted, dispatching reinforcements to Terminal R016. 03650_ O-32 Director locks terminal. 03652_ Hacking Suite destroyed. 03652_ Penetrated by Slug. 03652_ Slug penetrates Wall. 03656_ Acquired Impulse Thruster Array. 03658_ Slug penetrates Wall. 03659_ System corrupted: Matter fused (-10). 03669_ Penetrated by Slug. Map ----- +----------------------------------------------------+ | ?????????????????????????????????????????????????? | | ?????????????????????????????????????????????????? | | ?????????????????????????????????????????????????? | | ?????????????????????????????????????????????????? | | ?????????????????????????????????????????????????? | | ?????????????????????????????????????????????????? | | ?????????????????????????????????????????????????? | | ?????????????????????????????????????????????????? | | ?????????????????????????????????????????????????? | | ?????????????????????????????????????????????????? | | ?????????????????????????w ?????????????????????? | | ????????????????????????? #???????????????????? | | ?????????????????????????h ! ?????????????????? | | ????????????????????????? ?????????????????? | | ????????????????????????? ?????????????????? | | ????????????????????????? ??????????????????? | | ????????????????????????? """????????????????? | | ????????????????????????# """????????????????? | | ????????????????????????# """????????????????? | | ????????????????????????# """?? #????????????? | | ????#########???????????# """ #????????????? | | ????# !#???????????# """ #????????????? | | ##### ###########?# """ #????????????? | | ## ## #?# #????????????? | | ## ## #?# #????????????? | | ## """ ## ]#?#@ #????????????? | | " ## """ ## #?# """ #????????????? | | " ## "S% ## #?# """ ??????????????? | | " ## """ ## #?# """ ??????????????? | | " ## "" =## #?# """ ??????????????? | | !## ^ #? #?# """ ??????????????? | | ## #??? ???# """ ??????????????? | | #########"#"######+######k """ #????????????? | | g #????????????? | | p g u R p p????????? | | % k ????????? | | h k ####?????????? | | ###+######+###########????????????? | | " "" ]]] #?h??????# ??????????????????????? | | "R"" ]]] #????????# ??????????????????????? | | """ ]] #????????# ??????????????????????? | | #????????# ??????????????????????? | | /????????? ??????????????????????? | | #????????? ??????????????????????? | | """"T"""" # ###????????? ??????????????????????? | | """"""""""# #??????????? ??????????????????????? | | #??####?######??????????? ??????????????????????? | | ?????????????????????????##??????????????????????? | | ?????????????????????????????????????????????????? | | ?????????????????????????????????????????????????? | +----------------------------------------------------+ Best States ------------- Heat Dissipation 46 Energy Generation 24 Energy Capacity 275 Matter Stores 300 Matter Capacity 300 Sight Range 16 Robot Scan Range 16 Terrain Scan Density 10 Jamming Range 12 Armor Coverage 150 Resistance: EM 15 Evasion (%) 70 Recoil Reduction 1 Offensive Hacking 20 Defensive Hacking 14 Item Schematics ----------------- Imp. Carbon-fiber Leg | -6/Factory | Scanalyzed Rocket Launcher | -5/Factory | Scanalyzed Robot Schematics ------------------ None Fabricated ------------ Nothing Repaired ---------- Nothing Studied --------- Com. Wheel | -8/Materials | Hacked Xenon Bombardment Thruster | -7/Factory | Hacked Cesium-ion Thruster | -5/Factory | Hacked Alien Tech Used ----------------- None Achievements -------------- Deductive Reasoning I Have A Map? Sixth Sense Challenges ------------ None Game ------ Seed SeismicStealthLauncher Manual? 0 Play Time 01:21:44 Cumulative 53.7 hours Start 2026.05.02 @ 13:44:48 End 2026.05.02 @ 15:46:56 Sessions 1 Manual Loads 0 Difficulty Rogue Special Mode None Game No. 104 Rogue 104 Adventurer 0 Explorer 0 Win Type - Total 0 Types 0/0/0/0/0/0/0/0/0/0 Lore% 21 Gallery% 34 Achievement% 20 Wizard Run 0 Options --------- Layout 1 ASCII 0 Keyboard 0 Movement Arrows Keybinds 0 Fullscreen 1 Font 24/Smallcaps Map View 50x35 Zoom Use 0% Tactical HUD 1 Map Filters NONE Filters NONE Steam 1 RUN: 69973f56-ec8d-4420-9b3a-47a45aa6713d